fUST/lending_fUST_20251209
["ID","MTS","AMOUNT","RATE_DAILY","PERIOD"]
[397594631,1765210232800,-1178.97879449,6.046e-05,2]
[397594632,1765210232814,-3821.02120551,6.046e-05,2]
[397594633,1765210232827,-342.39003057,6.077e-05,2]
[397594634,1765210232839,-508.0,6.107e-05,2]
[397594635,1765210232851,-1200.0,6.228e-05,2]
[397594636,1765210232863,-300.0,6.229e-05,2]
[397594637,1765210232875,-273.0,6.229e-05,2]
[397594638,1765210232887,-300.0,6.229e-05,2]
[397594639,1765210232899,-215.0,6.229e-05,2]
[397594640,1765210232911,-1200.0,6.23e-05,2]
[397594641,1765210232924,-500.0,6.232e-05,2]
[397594642,1765210232940,-500.0,6.232e-05,2]
[397594643,1765210232952,-500.0,6.232e-05,2]
[397594644,1765210232968,-453.56350501,6.232e-05,2]
[397594645,1765210232980,-631.0,6.232e-05,2]
[397594646,1765210232992,-1359.0,6.232e-05,2]
[397594647,1765210233004,-2155.0,6.232e-05,2]
[397594648,1765210233015,-415.0,6.232e-05,2]
[397594649,1765210233026,-300.0,6.355e-05,2]
[397594650,1765210233037,-300.0,6.355e-05,2]
[397594651,1765210233048,-300.0,6.355e-05,2]
[397594652,1765210233059,-300.0,6.355e-05,2]
[397594653,1765210233072,-300.0,6.355e-05,2]
[397594654,1765210233083,-300.0,6.355e-05,2]
[397594655,1765210233094,-300.0,6.355e-05,2]
[397594656,1765210233105,-300.0,6.355e-05,2]
[397594657,1765210233117,-300.0,6.355e-05,2]
[397594658,1765210233128,-300.0,6.355e-05,2]
[397594659,1765210233140,-300.0,6.355e-05,2]
[397594660,1765210233151,-300.0,6.355e-05,2]
[397594661,1765210233162,-300.0,6.355e-05,2]
[397594662,1765210233173,-300.0,6.355e-05,2]
[397594663,1765210233188,-300.0,6.355e-05,2]
[397594664,1765210233200,-600.0,6.481e-05,2]
[397594665,1765210233213,-193.0,6.852e-05,2]
[397594666,1765210233226,-224.44293936,6.991e-05,2]
[397594667,1765210233238,-720.0,7.129e-05,2]
[397594668,1765210233252,-2312.83697232,7.292e-05,2]
[397594669,1765210233264,-873.0671467,7.808e-05,2]
[397594670,1765210233276,-864.0,7.842e-05,2]
[397594671,1765210233288,-404.02023607,8.077e-05,2]
[397594672,1765210233299,-250.0,8.105e-05,3]
[397594673,1765210233310,-814.97883436,8.106e-05,3]
[397594674,1765210233322,-1538.39180417,8.106e-05,3]
[397594675,1765210233333,-2396.39021809,8.106e-05,3]
[397594676,1765210233345,-174.825,8.118e-05,2]
[397594677,1765210233356,-21026.58957111,8.119e-05,2]
[397594678,1765210233386,-11.29523322,8.119e-05,2]
[397594705,1765210238880,-10951.96238003,8.119e-05,2]
[397594906,1765210241051,-1048.92294488,8.119e-05,2]
[397594916,1765210241144,-571.34418512,8.119e-05,2]
[397594921,1765210241175,-1061.69153269,8.119e-05,2]
[397594923,1765210241187,-14891.09803384,8.119e-05,2]
[397594925,1765210241198,-1421.1804627,8.119e-05,2]
[397595223,1765210243924,-1096.40019257,8.103e-05,2]
[397595235,1765210244030,-777.17506577,8.103e-05,2]
[397595237,1765210244041,-1894.19750275,8.103e-05,2]
[397595239,1765210244052,-278.06673143,8.103e-05,2]
[397595241,1765210244063,-418.93857618,8.103e-05,2]
[397595244,1765210244075,-8865.14604208,8.103e-05,2]
[397595514,1765210246773,-267874.2294733,8.103e-05,2]
[397595516,1765210246783,-136952.10863829,8.119e-05,2]
[397595518,1765210246792,-399.28161193,8.2e-05,2]
[397595520,1765210246801,-399.28161193,8.205e-05,2]
[397595522,1765210246811,-399.28161193,8.21e-05,2]
[397595524,1765210246820,-250.0,8.214e-05,2]
[397595526,1765210246829,-250.0,8.214e-05,2]
[397595528,1765210246838,-500.0,8.214e-05,2]
[397595530,1765210246847,-250.0,8.214e-05,2]
[397595532,1765210246856,-243.40049597,8.214e-05,2]
[397595533,1765210246866,-250.0,8.214e-05,2]
[397595535,1765210246875,-291.17825768,8.214e-05,2]
[397595537,1765210246884,-500.0,8.214e-05,2]
[397595539,1765210246894,-500.0,8.214e-05,2]
[397595541,1765210246903,-500.0,8.214e-05,2]
[397595543,1765210246912,-500.0,8.214e-05,2]
[397595545,1765210246921,-500.0,8.214e-05,2]
[397595547,1765210246930,-569.89298907,8.214e-05,2]
[397595549,1765210246939,-500.0,8.214e-05,2]
[397595551,1765210246949,-500.0,8.214e-05,2]
[397595553,1765210246958,-500.0,8.214e-05,2]
[397595555,1765210246968,-500.0,8.214e-05,2]
[397595557,1765210246978,-500.0,8.214e-05,2]
[397595559,1765210246988,-500.0,8.214e-05,2]
[397595561,1765210246997,-500.0,8.214e-05,2]
[397595563,1765210247007,-500.0,8.214e-05,2]
[397595565,1765210247016,-500.0,8.214e-05,2]
[397595567,1765210247025,-500.0,8.214e-05,2]
[397595569,1765210247034,-399.28161193,8.214e-05,2]
[397595571,1765210247044,-250.0,8.218e-05,2]
[397595573,1765210247053,-527.28340835,8.219e-05,2]
[397595575,1765210247062,-1053.05872427,8.219e-05,2]
[397595577,1765210247072,-1301.34945971,8.219e-05,2]
[397595580,1765210247082,-937.39272595,8.219e-05,2]
[397595582,1765210247091,-1464.6761343,8.219e-05,2]
[397595584,1765210247101,-1872.10439871,8.219e-05,2]
[397595585,1765210247110,-2925.16312298,8.219e-05,2]
[397595587,1765210247120,-500.0,8.219e-05,2]
[397595589,1765210247128,-500.0,8.219e-05,2]
[397595591,1765210247137,-500.0,8.219e-05,2]
[397595593,1765210247147,-719.93,8.219e-05,2]
[397595594,1765210247156,-666.24,8.219e-05,2]
[397595595,1765210247165,-500.0,8.219e-05,2]
[397595596,1765210247174,-500.0,8.219e-05,2]
[397595597,1765210247184,-500.0,8.219e-05,2]
[397595598,1765210247193,-991.15,8.219e-05,2]
[397595599,1765210247203,-500.0,8.219e-05,2]
[397595601,1765210247213,-500.0,8.219e-05,2]
[397595603,1765210247222,-500.0,8.219e-05,2]
[397595605,1765210247232,-500.0,8.219e-05,2]
[397595607,1765210247242,-654.96,8.219e-05,2]
[397595609,1765210247253,-638.89,8.219e-05,2]
[397595611,1765210247263,-500.0,8.219e-05,2]
[397595613,1765210247273,-500.0,8.219e-05,2]
[397595615,1765210247283,-2109.13363339,8.219e-05,2]
[397595617,1765210247292,-500.0,8.219e-05,2]
[397595619,1765210247302,-500.0,8.219e-05,2]
[397595621,1765210247311,-504.08,8.219e-05,2]
[397595623,1765210247321,-500.0,8.219e-05,2]
[397595625,1765210247330,-500.0,8.219e-05,2]
[397595627,1765210247340,-500.0,8.219e-05,2]
[397595630,1765210247349,-500.38437837,8.219e-05,2]
[397595631,1765210247359,-630.23,8.219e-05,2]
[397595633,1765210247369,-500.529843,8.219e-05,2]
[397595636,1765210247379,-500.54030359,8.219e-05,2]
[397595638,1765210247389,-500.0,8.219e-05,2]
[397595640,1765210247400,-1161.6,8.219e-05,2]
[397595642,1765210247410,-500.0,8.219e-05,2]
[397595644,1765210247419,-500.0,8.219e-05,2]
[397595646,1765210247428,-500.0,8.219e-05,2]
[397595648,1765210247439,-500.0,8.219e-05,2]
[397595650,1765210247450,-527.37,8.219e-05,2]
[397595652,1765210247459,-500.0,8.219e-05,2]
[397595653,1765210247470,-500.0,8.219e-05,2]
[397595655,1765210247479,-500.0,8.219e-05,2]
[397595657,1765210247489,-500.0,8.219e-05,2]
[397595659,1765210247499,-500.0,8.219e-05,2]
[397595661,1765210247508,-500.0,8.219e-05,2]
[397595664,1765210247518,-500.0,8.219e-05,2]
[397595666,1765210247528,-500.49,8.219e-05,2]
[397595668,1765210247537,-500.0,8.219e-05,2]
[397595670,1765210247546,-500.0,8.219e-05,2]
[397595672,1765210247556,-711.83,8.219e-05,2]
[397595673,1765210247569,-500.29587901,8.219e-05,2]
[397595675,1765210247579,-500.0,8.219e-05,2]
[397595677,1765210247589,-500.0,8.219e-05,2]
[397595680,1765210247599,-500.0,8.219e-05,2]
[397595682,1765210247608,-500.0,8.219e-05,2]
[397595683,1765210247618,-792.89,8.219e-05,2]
[397595686,1765210247627,-500.0,8.219e-05,2]
[397595688,1765210247637,-500.0,8.219e-05,2]
[397595690,1765210247647,-500.0,8.219e-05,2]
[397595691,1765210247656,-500.0,8.219e-05,2]
[397595693,1765210247666,-500.44,8.219e-05,2]
[397595695,1765210247675,-500.0,8.219e-05,2]
[397595697,1765210247685,-1917.73,8.219e-05,2]
[397595700,1765210247694,-1049.33,8.219e-05,2]
[397595702,1765210247704,-1172.91,8.219e-05,2]
[397595703,1765210247713,-500.0,8.219e-05,2]
[397595705,1765210247722,-698.08,8.219e-05,2]
[397595707,1765210247732,-500.0,8.219e-05,2]
[397595709,1765210247741,-698.76,8.219e-05,2]
[397595712,1765210247750,-1334.51,8.219e-05,2]
[397595713,1765210247759,-500.0,8.219e-05,2]
[397595715,1765210247768,-460.42892388,8.219e-05,2]
[397595717,1765210247777,-659.46,8.219e-05,2]
[397595720,1765210247786,-595.43,8.219e-05,2]
[397595721,1765210247796,-500.0,8.219e-05,2]
[397595724,1765210247805,-500.0,8.219e-05,2]
[397595726,1765210247815,-500.0,8.219e-05,2]
[397595727,1765210247824,-1000.0,8.219e-05,2]
[397595729,1765210247834,-500.0,8.219e-05,2]
[397595732,1765210247844,-500.0,8.219e-05,2]
[397595734,1765210247853,-500.0,8.219e-05,2]
[397595736,1765210247862,-840.53,8.219e-05,2]
[397595738,1765210247871,-500.0,8.219e-05,2]
[397595740,1765210247881,-500.0,8.219e-05,2]
[397595742,1765210247890,-500.0,8.219e-05,2]
[397595744,1765210247899,-500.0,8.219e-05,2]
[397595746,1765210247908,-500.0,8.219e-05,2]
[397595748,1765210247917,-500.0,8.219e-05,2]
[397595750,1765210247927,-500.42965004,8.219e-05,2]
[397595752,1765210247938,-182.04819661,8.219e-05,2]
[397595791,1765210248301,-317.95180339,8.219e-05,2]
[397595793,1765210248312,-500.0,8.219e-05,2]
[397595795,1765210248322,-500.0,8.219e-05,2]
[397595797,1765210248332,-465.32329712,8.219e-05,2]
[397595799,1765210248341,-4212.2348971,8.219e-05,2]
[397595801,1765210248350,-500.0,8.219e-05,2]
[397595803,1765210248360,-1715.08,8.219e-05,2]
[397595805,1765210248369,-500.0,8.219e-05,2]
[397595807,1765210248379,-500.0,8.219e-05,2]
[397595809,1765210248390,-500.0,8.219e-05,2]
[397595811,1765210248400,-500.0,8.219e-05,2]
[397595813,1765210248409,-1032.01,8.219e-05,2]
[397595815,1765210248418,-500.0,8.219e-05,2]
[397595817,1765210248427,-500.0,8.219e-05,2]
[397595819,1765210248437,-500.0,8.219e-05,2]
[397595821,1765210248446,-500.0,8.219e-05,2]
[397595823,1765210248457,-500.0,8.219e-05,2]
[397595825,1765210248466,-500.0,8.219e-05,2]
[397595827,1765210248475,-500.28547083,8.219e-05,2]
[397595829,1765210248484,-500.0,8.219e-05,2]
[397595831,1765210248494,-500.0,8.219e-05,2]
[397595832,1765210248504,-500.02372623,8.219e-05,2]
[397595834,1765210248514,-500.43514009,8.219e-05,2]
[397595836,1765210248523,-500.0,8.219e-05,2]
[397595839,1765210248533,-500.0,8.219e-05,2]
[397595841,1765210248543,-500.0,8.219e-05,2]
[397595843,1765210248552,-500.0,8.219e-05,2]
[397595845,1765210248563,-500.0,8.219e-05,2]
[397595847,1765210248574,-500.19211229,8.219e-05,2]
[397595849,1765210248583,-500.0,8.219e-05,2]
[397595850,1765210248593,-500.26687272,8.219e-05,2]
[397595853,1765210248602,-500.0,8.219e-05,2]
[397595855,1765210248614,-517.11808792,8.219e-05,2]
[397595857,1765210248628,-318.00191208,8.219e-05,2]
[397595859,1765210248637,-1628.37,8.219e-05,2]
[397595861,1765210248648,-1181.29,8.219e-05,2]
[397595863,1765210248657,-500.0,8.219e-05,2]
[397595865,1765210248667,-500.0,8.219e-05,2]
[397595867,1765210248677,-572.03,8.219e-05,2]
[397595869,1765210248687,-6967.4134772,8.219e-05,2]
[397595871,1765210248700,-621.48,8.219e-05,2]
[397595873,1765210248710,-1112.3,8.219e-05,2]
[397595875,1765210248720,-500.0,8.219e-05,2]
[397595877,1765210248729,-876.14,8.219e-05,2]
[397595879,1765210248739,-500.0,8.219e-05,2]
[397595881,1765210248748,-500.0,8.219e-05,2]
[397595883,1765210248758,-500.0,8.219e-05,2]
[397595885,1765210248768,-500.0,8.219e-05,2]
[397595887,1765210248779,-511.64867353,8.219e-05,2]
[397595889,1765210248788,-500.0,8.219e-05,2]
[397595891,1765210248798,-733.8,8.219e-05,2]
[397595894,1765210248809,-500.0,8.219e-05,2]
[397595896,1765210248819,-500.0,8.219e-05,2]
[397595897,1765210248828,-500.0,8.219e-05,2]
[397595899,1765210248838,-1887.51,8.219e-05,2]
[397595901,1765210248848,-500.0,8.219e-05,2]
[397595903,1765210248858,-500.0,8.219e-05,2]
[397595905,1765210248867,-500.56431005,8.219e-05,2]
[397595907,1765210248876,-792.62,8.219e-05,2]
[397595909,1765210248886,-500.0,8.219e-05,2]
[397595911,1765210248895,-500.0,8.219e-05,2]
[397595913,1765210248905,-500.0,8.219e-05,2]
[397595915,1765210248915,-500.0,8.219e-05,2]
[397595917,1765210248924,-665.83,8.219e-05,2]
[397595919,1765210248933,-500.0,8.219e-05,2]
[397595921,1765210248943,-500.0,8.219e-05,2]
[397595924,1765210248953,-500.0,8.219e-05,2]
[397595925,1765210248963,-201.97014513,8.219e-05,2]
[397601413,1765210324440,228.58472211,0.00014219,30]
[397601414,1765210324646,228.58472211,0.00014301,30]
[397601415,1765210324848,228.58472211,0.00014356,30]
[397601416,1765210325215,228.58472211,0.00014438,30]
[397601417,1765210325264,228.58472211,0.00014493,30]
[397601418,1765210325486,228.58472211,0.00014575,30]
[397601419,1765210325687,228.58472211,0.0001463,30]
[397601420,1765210325853,228.58472211,0.00014712,30]
[397601421,1765210326015,228.58472211,0.00014767,30]
[397601422,1765210326184,228.58472211,0.00014849,30]
[397601423,1765210326351,228.58472211,0.00014904,30]
[397601424,1765210326522,228.58472211,0.00014986,30]
[397601425,1765210461425,319.87981058,0.00014219,30]
[397601426,1765210461602,319.87981058,0.00014301,30]
[397601427,1765210461772,319.87981058,0.00014356,30]
[397601428,1765210461975,319.87981058,0.00014438,30]
[397601429,1765210462128,319.87981058,0.00014493,30]
[397601430,1765210462318,319.87981058,0.00014575,30]
[397601431,1765210462485,319.87981058,0.0001463,30]
[397601432,1765210462638,319.87981058,0.00014712,30]
[397601433,1765210462816,319.87981058,0.00014767,30]
[397601434,1765210462973,319.87981058,0.00014849,30]
[397601435,1765210463336,319.87981058,0.00014904,30]
[397601436,1765210463658,319.87981058,0.00014986,30]
[397601606,1765210979622,173.0534995,0.00010949,7]
[397601607,1765210994719,656.0,0.00015,30]
[397601608,1765211023688,164.0,0.00015,30]
[397601637,1765211142084,-5000.0,5.768e-05,2]
[397601638,1765211142104,-1200.0,5.825e-05,2]
[397601639,1765211142124,-5000.0,5.826e-05,2]
[397601640,1765211142144,-300.0,5.882e-05,2]
[397601641,1765211142163,-300.0,5.883e-05,2]
[397601642,1765211142183,-300.0,5.883e-05,2]
[397601643,1765211142203,-5000.0,5.885e-05,2]
[397601644,1765211142223,-338.66364343,5.974e-05,2]
[397601645,1765211142242,-1200.0,6.003e-05,2]
[397601646,1765211142261,-508.0,6.127e-05,2]
[397601647,1765211142281,-1680.0,6.407e-05,2]
[397601648,1765211142301,-420.0,6.47e-05,2]
[397601649,1765211142319,-420.0,6.471e-05,2]
[397601650,1765211142337,-2155.0,6.508e-05,2]
[397601651,1765211142356,-631.0,6.508e-05,2]
[397601652,1765211142375,-1359.0,6.508e-05,2]
[397601653,1765211142396,-300.0,6.571e-05,2]
[397601654,1765211142418,-300.0,6.571e-05,2]
[397601655,1765211142438,-300.0,6.571e-05,2]
[397601656,1765211142460,-300.0,6.571e-05,2]
[397601657,1765211142481,-300.0,6.571e-05,2]
[397601658,1765211142501,-300.0,6.571e-05,2]
[397601659,1765211142522,-300.0,6.571e-05,2]
[397601660,1765211142544,-300.0,6.571e-05,2]
[397601661,1765211142565,-300.0,6.571e-05,2]
[397601662,1765211142586,-300.0,6.571e-05,2]
[397601663,1765211142607,-300.0,6.571e-05,2]
[397601664,1765211142628,-300.0,6.571e-05,2]
[397601665,1765211142650,-300.0,6.571e-05,2]
[397601666,1765211142672,-300.0,6.571e-05,2]
[397601667,1765211142694,-300.0,6.571e-05,2]
[397601668,1765211142714,-174.826,6.953e-05,2]
[397601669,1765211142733,-276.98881268,6.975e-05,2]
[397601670,1765211142753,-2351.0,7.048e-05,2]
[397601671,1765211142773,-161.0,7.117e-05,2]
[397601672,1765211142793,-238.0,7.118e-05,2]
[397601673,1765211142812,-2487.15318209,7.807e-05,2]
[397601674,1765211142831,-399.62309925,7.974e-05,2]
[397601675,1765211142852,-276.98881268,7.977e-05,2]
[397601676,1765211142871,-159.13180362,8.014e-05,2]
[397601677,1765211142892,-151.0,8.014e-05,2]
[397601678,1765211142913,-500.0,8.014e-05,2]
[397601679,1765211142936,-500.0,8.014e-05,2]
[397601680,1765211142957,-500.0,8.014e-05,2]
[397601681,1765211142978,-500.0,8.014e-05,2]
[397601682,1765211142998,-500.0,8.014e-05,2]
[397601683,1765211143018,-500.0,8.014e-05,2]
[397601684,1765211143039,-500.0,8.014e-05,2]
[397601685,1765211143060,-500.0,8.014e-05,2]
[397601686,1765211143081,-500.0,8.014e-05,2]
[397601687,1765211143101,-500.0,8.014e-05,2]
[397601688,1765211143123,-500.0,8.014e-05,2]
[397601689,1765211143144,-500.0,8.014e-05,2]
[397601690,1765211143165,-500.0,8.014e-05,2]
[397601692,1765211143186,-500.0,8.014e-05,2]
[397601693,1765211143210,-500.0,8.014e-05,2]
[397601694,1765211143238,-124635.40262125,8.019e-05,2]
[397601701,1765211216078,-5000.0,6.443e-05,2]
[397601703,1765211216099,-323.89790858,6.475e-05,2]
[397601704,1765211216118,-415.0,6.508e-05,2]
[397601705,1765211216138,-5000.0,7.86e-05,2]
[397601706,1765211216159,-300.0,7.938e-05,2]
[397601707,1765211216178,-4851.58103942,7.939e-05,2]
[397601712,1765211227078,-5000.0,7.86e-05,2]
[397601713,1765211227102,-148.41896058,7.939e-05,2]
[397601714,1765211227123,-500.0,8.014e-05,2]
[397601715,1765211227150,-300.0,8.018e-05,2]
[397601716,1765211227181,-136054.99431842,8.019e-05,2]
[397601718,1765211234122,-5000.0,7.781e-05,2]
[397601719,1765211234150,-18182.746174,8.019e-05,2]
[397601720,1765211239120,-5000.0,7.703e-05,2]
[397601721,1765211239148,-78124.062082,8.019e-05,2]
[397601722,1765211251093,-5000.0,7.939e-05,2]
[397601723,1765211251121,-2418.88268298,8.019e-05,2]
[397601801,1765211432121,-824.32029811,7.781e-05,2]
[397601802,1765211432132,-4175.67970189,7.781e-05,2]
[397601803,1765211432141,-529.0,7.781e-05,2]
[397601804,1765211432150,-4831.0152023,7.86e-05,2]
[397601831,1765211437953,-5000.0,7.703e-05,2]
[397601833,1765211437962,-168.9847977,7.86e-05,2]
[397601835,1765211437973,-15880.79902775,7.919e-05,2]
[397601837,1765211437983,-300.0,7.936e-05,2]
[397601839,1765211437992,-5000.0,7.939e-05,2]
[397601841,1765211438002,-8384.91385045,8.092e-05,2]
[397601843,1765211438014,-250.0,8.105e-05,3]
[397601845,1765211438023,-600.0,8.178e-05,2]
[397601847,1765211438034,-300.0,8.178e-05,2]
[397601848,1765211438044,-300.0,8.178e-05,2]
[397601851,1765211438054,-300.0,8.178e-05,2]
[397601853,1765211438064,-300.0,8.178e-05,2]
[397601855,1765211438075,-300.0,8.178e-05,2]
[397601857,1765211438086,-300.0,8.178e-05,2]
[397601859,1765211438096,-300.0,8.178e-05,2]
[397601861,1765211438106,-300.0,8.178e-05,2]
[397601863,1765211438115,-300.0,8.178e-05,2]
[397601865,1765211438125,-300.0,8.178e-05,2]
[397601866,1765211438135,-300.0,8.178e-05,2]
[397601869,1765211438144,-300.0,8.178e-05,2]
[397601871,1765211438154,-300.0,8.178e-05,2]
[397601873,1765211438164,-300.0,8.178e-05,2]
[397601875,1765211438174,-300.0,8.178e-05,2]
[397601877,1765211438183,-1959.64,8.198e-05,2]
[397601880,1765211438197,-2487.15318209,8.214e-05,2]
[397601881,1765211438206,-500.0,8.214e-05,2]
[397601883,1765211438217,-500.0,8.214e-05,2]
[397601885,1765211438227,-500.0,8.214e-05,2]
[397601887,1765211438238,-500.0,8.214e-05,2]
[397601889,1765211438248,-500.0,8.214e-05,2]
[397601891,1765211438259,-500.0,8.214e-05,2]
[397601893,1765211438269,-500.0,8.214e-05,2]
[397601895,1765211438280,-500.0,8.214e-05,2]
[397601897,1765211438290,-500.0,8.214e-05,2]
[397601899,1765211438301,-500.0,8.214e-05,2]
[397601901,1765211438311,-500.0,8.214e-05,2]
[397601903,1765211438320,-500.0,8.214e-05,2]
[397601905,1765211438330,-500.0,8.214e-05,2]
[397601907,1765211438339,-500.0,8.214e-05,2]
[397601909,1765211438349,-250.0,8.218e-05,2]
[397601911,1765211438359,-358.4180759,8.219e-05,2]
[397601913,1765211438369,-499.19784404,8.219e-05,2]
[397601915,1765211438379,-500.36126581,8.219e-05,2]
[397601918,1765211438389,-500.0,8.219e-05,2]
[397601919,1765211438399,-176.8841391,8.219e-05,2]
[397601922,1765211438409,-500.0,8.219e-05,2]
[397601924,1765211438419,-500.0,8.219e-05,2]
[397601926,1765211438428,-500.0,8.219e-05,2]
[397601928,1765211438439,-500.0,8.219e-05,2]
[397601930,1765211438457,-500.0,8.219e-05,2]
[397601932,1765211438466,-500.0,8.219e-05,2]
[397601934,1765211438476,-603.97,8.219e-05,2]
[397601936,1765211438485,-500.0,8.219e-05,2]
[397601937,1765211438495,-500.0,8.219e-05,2]
[397601940,1765211438505,-500.0,8.219e-05,2]
[397601942,1765211438514,-505.4,8.219e-05,2]
[397601944,1765211438524,-500.0,8.219e-05,2]
[397601945,1765211438533,-500.0,8.219e-05,2]
[397601948,1765211438542,-500.0,8.219e-05,2]
[397601949,1765211438552,-1005.61,8.219e-05,2]
[397601951,1765211438561,-1124.03,8.219e-05,2]
[397601953,1765211438572,-500.0,8.219e-05,2]
[397601956,1765211438581,-500.0,8.219e-05,2]
[397601957,1765211438590,-1837.83,8.219e-05,2]
[397601959,1765211438600,-500.0,8.219e-05,2]
[397601962,1765211438611,-500.0,8.219e-05,2]
[397601964,1765211438621,-585.68832768,8.219e-05,2]
[397601965,1765211438630,-500.0,8.219e-05,2]
[397601967,1765211438639,-319.14891392,8.219e-05,2]
[397601969,1765211438650,-1172.81,8.219e-05,2]
[397601971,1765211438659,-631.98,8.219e-05,2]
[397601973,1765211438668,-500.0,8.219e-05,2]
[397601975,1765211438677,-500.0,8.219e-05,2]
[397601977,1765211438686,-500.0,8.219e-05,2]
[397601979,1765211438697,-500.78238128,8.219e-05,2]
[397601981,1765211438707,-500.0,8.219e-05,2]
[397601983,1765211438718,-500.0,8.219e-05,2]
[397601985,1765211438728,-500.0,8.219e-05,2]
[397601987,1765211438739,-500.0,8.219e-05,2]
[397601989,1765211438749,-500.0,8.219e-05,2]
[397601991,1765211438759,-500.0,8.219e-05,2]
[397601993,1765211438768,-500.0,8.219e-05,2]
[397601995,1765211438778,-669.64,8.219e-05,2]
[397601997,1765211438788,-500.0,8.219e-05,2]
[397601998,1765211438798,-500.0,8.219e-05,2]
[397601999,1765211438808,-1278.91,8.219e-05,2]
[397602000,1765211438817,-500.0,8.219e-05,2]
[397602001,1765211438827,-505.28968134,8.219e-05,2]
[397602002,1765211438837,-500.0,8.219e-05,2]
[397602003,1765211438847,-596.31,8.219e-05,2]
[397602004,1765211438858,-1643.62,8.219e-05,2]
[397602005,1765211438868,-500.0,8.219e-05,2]
[397602006,1765211438879,-500.0,8.219e-05,2]
[397602007,1765211438890,-1132.07,8.219e-05,2]
[397602008,1765211438900,-500.0,8.219e-05,2]
[397602009,1765211438910,-500.0,8.219e-05,2]
[397602010,1765211438920,-500.0,8.219e-05,2]
[397602011,1765211438932,-500.0,8.219e-05,2]
[397602012,1765211438942,-500.0,8.219e-05,2]
[397602013,1765211438956,-500.0,8.219e-05,2]
[397602015,1765211438967,-500.0,8.219e-05,2]
[397602016,1765211438976,-500.0,8.219e-05,2]
[397602018,1765211438988,-845.39,8.219e-05,2]
[397602020,1765211438998,-500.0,8.219e-05,2]
[397602022,1765211439008,-500.0,8.219e-05,2]
[397602024,1765211439019,-500.0,8.219e-05,2]
[397602026,1765211439029,-500.0,8.219e-05,2]
[397602028,1765211439040,-1000.0,8.219e-05,2]
[397602030,1765211439050,-500.0,8.219e-05,2]
[397602032,1765211439060,-500.0,8.219e-05,2]
[397602034,1765211439070,-1654.64,8.219e-05,2]
[397602036,1765211439082,-500.0,8.219e-05,2]
[397602038,1765211439093,-1031.58,8.219e-05,2]
[397602040,1765211439103,-500.0,8.219e-05,2]
[397602042,1765211439113,-500.0,8.219e-05,2]
[397602044,1765211439123,-500.0,8.219e-05,2]
[397602046,1765211439133,-500.0,8.219e-05,2]
[397602048,1765211439143,-500.0,8.219e-05,2]
[397602050,1765211439152,-518.51240775,8.219e-05,2]
[397602052,1765211439162,-500.0,8.219e-05,2]
[397602054,1765211439172,-500.0,8.219e-05,2]
[397602055,1765211439182,-500.0,8.219e-05,2]
[397602058,1765211439192,-500.0,8.219e-05,2]
[397602059,1765211439206,-500.0,8.219e-05,2]
[397602062,1765211439216,-692.61,8.219e-05,2]
[397602063,1765211439226,-500.0,8.219e-05,2]
[397602066,1765211439236,-500.0,8.219e-05,2]
[397602067,1765211439246,-838.92,8.219e-05,2]
[397602070,1765211439255,-500.0,8.219e-05,2]
[397602071,1765211439265,-500.0,8.219e-05,2]
[397602074,1765211439274,-500.0,8.219e-05,2]
[397602075,1765211439284,-500.0,8.219e-05,2]
[397602077,1765211439293,-285.69824304,8.219e-05,2]
[397602079,1765211439303,-500.0,8.219e-05,2]
[397602081,1765211439312,-276.12572872,8.219e-05,2]
[397602083,1765211439321,-1123.31,8.219e-05,2]
[397602085,1765211439331,-500.0,8.219e-05,2]
[397602087,1765211439340,-500.0,8.219e-05,2]
[397602089,1765211439349,-500.0,8.219e-05,2]
[397602092,1765211439360,-500.0,8.219e-05,2]
[397602094,1765211439369,-500.0,8.219e-05,2]
[397602096,1765211439385,-500.0,8.219e-05,2]
[397602099,1765211439398,-759.6,8.219e-05,2]
[397602101,1765211439412,-500.0,8.219e-05,2]